{"text_format":"1","workbook":"xlsx","n_sheets":3,"sheets":["old","Send Mail","Sheet3"],"not_rendered":{"charts":0,"images":0,"macros":1,"external_links":0,"defined_names":0,"comments":0,"pivot_tables":0},"unopened":[],"bounds":{"document_bytes":16777216,"sheet_cells":100000,"rows_first":2000,"rows_last":500,"rows_between":2000,"halvings":0,"cell_chars":16384,"cell_head_chars":4096},"cells_cut":0,"cells_raw":0,"read":"whole","date_system":"1900"}

{"sheet":"old","index":0,"n_rows":4,"n_cols":6,"rows_kept":4,"cut":false,"hidden":true,"merged":[]}
["Country","To","CC","SUB","Mail Body","Attachment Path"]
[null,"Nilkanth.raval@gmail.com",null,"Pay slip for the month of Jan 2012",{"$f":"\"Hi \"&LEFT(B2,FIND(\".\",B2)-1)&\",\"&CHAR(10)&\"Please find here the payslip for the month of Jan 2012\"","v":"Hi Nilkanth,\nPlease find here the payslip for the month of Jan 2012"},"D:\\Payslips\\1.txt"]
[null,"Dipesh.sharma@gmail.com",null,"Pay slip for the month of Jan 2012",{"$f":"\"Hi \"&LEFT(B3,FIND(\".\",B3)-1)&\",\"&CHAR(10)&\"Please find here the payslip for the month of Jan 2012\"","v":"Hi Dipesh,\nPlease find here the payslip for the month of Jan 2012"},"D:\\Payslips\\2.txt"]
[null,"abc.xyz@gmail.com",null,"Pay slip for the month of Jan 2012",{"$f":"\"Hi \"&LEFT(B4,FIND(\".\",B4)-1)&\",\"&CHAR(10)&\"Please find here the payslip for the month of Jan 2012\"","v":"Hi abc,\nPlease find here the payslip for the month of Jan 2012"},"D:\\Payslips\\3.txt"]

{"sheet":"Send Mail","index":1,"n_rows":11,"n_cols":10,"rows_kept":11,"cut":false,"hidden":false,"merged":[]}
["TO","CC","BCC","SUBJECT","BODY","Priority","Req. Read Receipt","Delivery Report","Body Format","ATTACHMENTS"]
["To 1@test.com; pradeep@p.com","CC 1@test.com","BCC 1@test.com",{"$f":"\"SUB \"&Sheet3!A1","v":"SUB 1"},{"$f":"\"BODY \"&Sheet3!A1","v":"BODY 1"},"High","Yes","Yes","Rich","D:\\IT\\Game PSP.xlsx;D:\\IT\\Error.log"]
["To 2@test.com","CC 2@test.com","BCC 2@test.com",{"$f":"\"SUB \"&Sheet3!A2","v":"SUB 2"},{"$f":"\"BODY \"&Sheet3!A2","v":"BODY 2"},"High","Yes","Yes","Html","D:\\IT\\Game PSP.xlsx;D:\\IT\\Error.log"]
["To 3@test.com","CC 3@test.com","BCC 3@test.com",{"$f":"\"SUB \"&Sheet3!A3","v":"SUB 3"},{"$f":"\"BODY \"&Sheet3!A3","v":"BODY 3"},"Low","Yes","Yes","Plain","D:\\IT\\Game PSP.xlsx;D:\\IT\\Error.log"]
["To 4@test.com","CC 4@test.com","BCC 4@test.com",{"$f":"\"SUB \"&Sheet3!A4","v":"SUB 4"},{"$f":"\"BODY \"&Sheet3!A4","v":"BODY 4"},"Low","No","No","Rich","D:\\IT\\Game PSP.xlsx;D:\\IT\\Error.log"]
["To 5@test.com","CC 5@test.com","BCC 5@test.com",{"$f":"\"SUB \"&Sheet3!A5","v":"SUB 5"},{"$f":"\"BODY \"&Sheet3!A5","v":"BODY 5"},"High","No","No","Html","D:\\IT\\Game PSP.xlsx"]
["To 6@test.com","CC 6@test.com","BCC 6@test.com",{"$f":"\"SUB \"&Sheet3!A6","v":"SUB 6"},{"$f":"\"BODY \"&Sheet3!A6","v":"BODY 6"},"Low","No","No","Plain","D:\\IT\\Game PSP.xlsx"]
["To 7@test.com","CC 7@test.com","BCC 7@test.com",{"$f":"\"SUB \"&Sheet3!A7","v":"SUB 7"},{"$f":"\"BODY \"&Sheet3!A7","v":"BODY 7"},"Low","No","No","Rich","D:\\IT\\Game PSP.xlsx"]
["To 8@test.com","CC 8@test.com","BCC 8@test.com",{"$f":"\"SUB \"&Sheet3!A8","v":"SUB 8"},{"$f":"\"BODY \"&Sheet3!A8","v":"BODY 8"},"Low","No","No","Html","D:\\IT\\Game PSP.xlsx"]
["To 9@test.com","CC 9@test.com","BCC 9@test.com",{"$f":"\"SUB \"&Sheet3!A9","v":"SUB 9"},{"$f":"\"BODY \"&Sheet3!A9","v":"BODY 9"},"Low","No","No","Plain","D:\\IT\\Game PSP.xlsx"]
["To 10@test.com","CC 10@test.com","BCC 10@test.com",{"$f":"\"SUB \"&Sheet3!A10","v":"SUB 10"},{"$f":"\"BODY \"&Sheet3!A10","v":"BODY 10"},"Low","No","No","Plain","D:\\IT\\Game PSP.xlsx"]

{"sheet":"Sheet3","index":2,"n_rows":10,"n_cols":6,"rows_kept":10,"cut":false,"hidden":true,"merged":[]}
[1,null,"Priority","Imp","ReadReceiptRequested","Body Format"]
[{"$f":"A1+1","v":2},null,"High","olImportanceHigh",true,"olFormatRichText"]
[3,null,"Low","olImportanceLow",false,"olFormatHTML"]
[4,null,"Normal","olImportanceNormal",null,"olFormatPlain"]
[5]
[6]
[7]
[8]
[9]
[10]